[Event "51st Rilton Cup 2023-24"]
[Site "Stockholm"]
[Date "2023.12.27"]
[Round "1.1"]
[White "Sai Agni Jeevitesh, J."]
[Black "Socko, Bartosz"]
[Result "1-0"]
[ECO "E20"]
[WhiteElo "2302"]
[BlackElo "2550"]
[Annotator "TA"]
[PlyCount "107"]
[EventDate "2023.12.27"]
[EventType "swiss"]
[EventCountry "SWE"]
[SourceTitle "playchess.com"]
[Source "ChessBase"]
[SourceQuality "1"]
[TimeControl "40/5400+30:1800+30"]

{[%evp 9,107,0,0,0,14,9,7,-22,-26,-26,-27,-5,-12,-14,-34,-72,-29,-91,-86,-81,-34,-52,-18,-10,-30,-5,-12,-20,-21,-37,0,0,54,54,56,50,60,0,0,0,62,72,421,423,732,732,732,732,732,732,732,732,731,731,602,518,472,415,397,377,412,369,583,576,875,805,29978,29979,29977,29978,29998,29981,29986,872,854,784,777,777,777,310,769,741,710,387,391,380,404,423,341,343,474,429,29979,29980,29980,29981,29981,29982,29982,29983]} 1. d4 {[%emt 0:00:04] Krasenkow,Michal} Nf6 {[%emt 0:00:05]} 2. c4 {[%emt 0:00:05]} e6 {[%emt 0:00:04]} 3. Nc3 {[%emt 0:00:16]} Bb4 {[%emt 0:00:07]} 4. f3 {[%emt 0:00:10]} O-O {[%emt 0:00:12]} 5. e4 {[%emt 0:05:07]} d5 {[%emt 0:00:30]} 6. e5 {[%emt 0:02:32] E20: Nimzo-Indian: 4 g3 and 4 f3.} Nfd7 {[%emt 0:00:09]} 7. cxd5 {[%emt 0:07:09]} exd5 {[%emt 0:00:10] White must now prevent ...c5.} 8. a3 {[%emt 0:00:18] The position is equal.} Bxc3+ {[%emt 0:00:32]} 9. bxc3 {[%emt 0:00:02]} f6 $1 {[%emt 0:00:16]} 10. exf6 {[%emt 0:03:30]} Qe8+ {[%emt 0:00:06] [#]} 11. Ne2 $146 {[%emt 0:16:15] Strongly threatening fxg7.} ({Predecessor:} 11. Qe2 Qf7 12. fxg7 Re8 13. Be3 Nc6 14. Qd2 Na5 15. Rb1 Nb6 16. Rb4 Nac4 17. Bxc4 dxc4 {1-0 Mamedyarov,S (2757)-Aronian,L (2830) Candidates Tournament 2014 (9)}) 11... Nxf6 {[%emt 0:06:46]} 12. Bf4 {[%emt 0:01:04][%cal Of4e5]} Qe7 {[%emt 0:06:55]} 13. Qb3 {[%emt 0:10:32]} (13. Kf2 $11) 13... Nc6 $17 {[%emt 0:06:29][%cal Bb8c6,Bc6a5,Ba5b3][%mdl 32]} 14. O-O-O {[%emt 0:03:58]} a5 {[%emt 0:06:30]} ({Better is} 14... b6 $17) 15. Ng3 {[%emt 0:03:47]} Ng4 {[%emt 0:01:35][%mdl 64] Discovered Attack} 16. Bd2 {[%emt 0:08:33]} (16. Qxd5+ Be6 17. Qc5 Qxc5 18. dxc5 Rxf4 $15) 16... a4 {[%emt 0:11:15]} (16... Ne3 $2 17. Re1 $18) 17. Qa2 {[%emt 0:01:17]} (17. Qxd5+ Be6 18. Qc5 Qxc5 19. dxc5 Nf2 $17) 17... Nf6 {[%emt 0:01:01]} (17... Ne3 $2 18. Re1 $18) 18. Bd3 {[%emt 0:04:14]} Na5 {[%emt 0:02:26]} 19. Bg5 {[%emt 0:01:32]} c5 {[%emt 0:08:07]} 20. Rhe1 {[%emt 0:10:28]} Qc7 {[%emt 0:07:35]} (20... Qf7 $11) 21. Bxf6 $1 $14 {[%emt 0:02:41] This pair of bishops is nice.} Nb3+ {[%emt 0:00:09]} 22. Kb1 {[%emt 0:00:16]} gxf6 {[%emt 0:00:05]} 23. Qe2 {[%emt 0:02:49]} (23. dxc5 $14 Qxc5 24. h4) 23... Bd7 $1 $11 {[%emt 0:06:17]} 24. Nh5 $40 {[%emt 0:04:56][%mdl 128] Qe7 is the strong threat. White attacks.} Rae8 {[%emt 0:04:41] Dodges Qe7} (24... Rf7 $1 $11) 25. Qf2 $1 $14 {[%emt 0:00:15]} Rf7 $2 {[%emt 0:08:18][%mdl 8192] This move loses the game for Black.} (25... Qxh2 $2 26. Rh1 Qd6 27. Qh4 $18) (25... Rxe1 $16 {is more resistant.} 26. Qxe1 Qd6) 26. Qh4 $18 {[%emt 0:01:58]} Qb6 {[%emt 0:00:05]} (26... Qc6 $142 27. Bxh7+ Kf8) 27. Rxe8+ {[%emt 0:03:35]} (27. Nxf6+ $2 Qxf6 28. Bxh7+ Kg7 29. Qxf6+ Rxf6 30. Rxe8 Bxe8 $19) 27... Bxe8 {[%emt 0:00:29]} 28. Re1 {[%emt 0:00:00]} Kf8 {[%emt 0:04:35]} 29. Qf4 {[%emt 0:01:01] White wants to mate with Qh6+.} Nxd4+ {[%emt 0:02:50]} 30. Kc1 {[%emt 0:00:17][%cal Bb1c1,Bc1d2,Bd2e2,Be2e3][%mdl 32] Qh6+ would kill now.} Ne6 {[%emt 0:00:19]} 31. Qh6+ {[%emt 0:00:19]} (31. Nxf6 $2 Nxf4 32. Rxe8+ Kg7 33. Nxd5 Nxd3+ $19) (31. Qb8 Qc7 32. Qxc7 (32. Qa8 Re7 $17) 32... Nxc7 $11) 31... Ke7 {[%emt 0:00:05]} 32. Nf4 {[%emt 0:00:19][%cal Bh5f4,Bf4d5,Bd5f6][%mdl 32]} (32. Bxh7 Qb3 $11) 32... Qb3 {[%emt 0:00:04]} 33. Rxe6+ {[%emt 0:00:22]} Kd8 {[%emt 0:00:05]} 34. Kd2 {[%emt 0:06:29]} (34. Rxf6 $2 Qxc3+ 35. Kd1 Rxf6 $19) (34. Bxh7 Qxa3+ 35. Kd2 Qb2+ 36. Bc2 d4 $18) 34... d4 {[%emt 0:00:05]} 35. cxd4 {[%emt 0:00:15]} (35. Bxh7 Bd7 $16) 35... c4 {[%emt 0:00:05]} (35... Bd7 {is a better defense.}) 36. Bc2 {[%emt 0:00:40]} Qxa3 {[%emt 0:00:29]} 37. Nd5 {[%emt 0:00:34] Intending Qf4 and mate.} Bc6 {[%emt 0:00:38] [#]} 38. Qf4 $1 {[%emt 0:00:33]} c3+ {[%emt 0:01:02]} (38... Bxd5 39. Qb8+) 39. Ke2 {[%emt 0:00:39]} Kd7 {[%emt 0:00:46]} 40. Nxf6+ {[%emt 0:00:57]} Kc8 {[%emt 0:00:41]} 41. Qe5 {[%emt 0:10:02]} (41. Bxh7 Qb2+ 42. Ke1 Rxh7 $11) (41. Bf5 $142 Qb2+ 42. Kf1 Qb5+ 43. Kg1 Qxf5 44. Qxf5 Kb8 45. Qe5+ Ka8 46. Qa5+ Kb8 47. Rd6) 41... Qa2 {[%emt 0:01:23] [#]} 42. Ke3 $1 {[%emt 0:07:06][%cal Oe6e8] Threatening mate with Re8+!} Qxc2 {[%emt 0:01:12] [#]} 43. Re8+ $1 {[%emt 0:01:32][%mdl 512]} Bxe8 {[%emt 0:00:05]} 44. Qxe8+ {[%emt 0:00:01]} Kc7 {[%emt 0:00:08]} 45. Qxf7+ {[%emt 0:00:02][%mdl 4096] Endgame} Kb6 {[%emt 0:03:16]} 46. Nd7+ {[%emt 0:07:46]} (46. Nxh7 $2 Qd2+ 47. Ke4 c2 48. Qe6+ Ka7 $19) 46... Ka5 {[%emt 0:01:09] And now ...Qd2+ would win.} 47. Qd5+ {[%emt 0:02:42]} ({Not} 47. Qc4 Qc1+ 48. Ke4 Qb1+ 49. Qd3 Qb3 $18) 47... b5 {[%emt 0:02:05] [#] Hoping for ...Qd2+.} 48. Ne5 $1 {[%emt 0:00:27]} ({And not} 48. Qc5 Qd2+ 49. Ke4 Qe2+ 50. Kf5 Qd3+ 51. Kg4 Qg6+ 52. Kf4 (52. Kh4 Qh6+ 53. Kg4 Qe6+ 54. Kf4 Qf7+ 55. Ke3 Qxd7 $11) 52... Qf7+ 53. Ke4 Qxd7 $11) 48... Qd2+ {[%emt 0:18:45]} 49. Ke4 {[%emt 0:00:01]} Qc2+ {[%emt 0:00:22]} 50. Kf4 {[%emt 0:00:42] White threatens Nc6+ and mate.} a3 {[%emt 0:00:04]} (50... Qd2+ $18 51. Kf5 a3) 51. Nc4+ {[%emt 0:01:26] White mates.} Ka4 {[%emt 0:00:09] [#]} 52. Qxb5+ $3 {[%emt 0:00:36][%mdl 512]} Kxb5 {[%emt 0:00:07]} 53. Nxa3+ {[%emt 0:00:01]} Kb4 {[%emt 0:00:11]} 54. Nxc2+ {[%emt 0:00:03] Beautiful play by Sai Agni Jeevitesh!   Weighted Error Value: White=0.18 (very precise) /Black=0.57} 1-0

[Event "51st Rilton Cup 2023-24"]
[Site "Stockholm"]
[Date "2023.12.27"]
[Round "1.2"]
[White "Kulaots, Kaido"]
[Black "Farokhi, Keyvan"]
[Result "1-0"]
[ECO "C02"]
[WhiteElo "2524"]
[BlackElo "2298"]
[Annotator "TA"]
[PlyCount "51"]
[EventDate "2023.12.27"]
[EventType "swiss"]
[EventCountry "SWE"]
[SourceTitle "playchess.com"]
[Source "ChessBase"]
[SourceQuality "1"]
[TimeControl "40/5400+30:1800+30"]

{[%evp 14,51,36,41,32,33,34,24,33,32,39,43,67,49,54,53,66,68,57,55,79,59,72,43,90,106,115,104,408,180,359,343,460,464,1514,89,722,722,29990,29991]} 1. e4 {[%emt 0:00:07]} c5 {[%emt 0:00:10]} 2. Nf3 {[%emt 0:00:26]} e6 {[%emt 0:00:19]} 3. c3 {[%emt 0:00:38]} d5 {[%emt 0:03:37]} 4. e5 {[%emt 0:00:32]} Bd7 {[%emt 0:08:15]} 5. d4 {[%emt 0:01:41]} Qb6 {[%emt 0:00:19]} 6. Bd3 {[%emt 0:02:15]} Bb5 {[%emt 0:01:54]} 7. dxc5 $1 {[%emt 0:02:17][%mdl 4] is currently scoring better than 7.0-0.} Bxc5 {[%emt 0:02:06]} 8. b4 {[%emt 0:00:34]} Bxd3 {[%emt 0:03:10] C02: French: Advance Variation.} 9. Qxd3 {[%emt 0:00:36]} Bf8 {[%emt 0:13:29]} 10. O-O {[%emt 0:04:10]} Ne7 {[%emt 0:03:18] White has an edge.} 11. Be3 {[%emt 0:04:43]} Qc7 {[%emt 0:09:13] Black is weak on the dark squares} 12. Na3 {[%emt 0:06:42] Threatens to win with Nb5.} a6 {[%emt 0:03:03] Prevents Nb5} 13. c4 $1 {[%emt 0:08:19] White has more active pieces.} Nbc6 {[%emt 0:03:07][%csl LRb4,LRe5]} 14. Bc5 {[%emt 0:13:18]} Nxe5 {[%emt 0:16:15]} 15. Nxe5 {[%emt 0:00:30]} Qxe5 {[%emt 0:00:07]} 16. Rfe1 {[%emt 0:05:47] [#]} Qf5 $146 {[%emt 0:01:35] [#]} ({Predecessor:} 16... Qg5 17. Rad1 Ng6 18. Qxd5 Qxd5 19. cxd5 Bxc5 20. bxc5 Rc8 21. c6 bxc6 22. dxe6 fxe6 23. Rxe6+ Kf7 24. Red6 Rhe8 25. Nc4 Re2 26. Rd7+ Kf8 27. R7d2 Rce8 {0-1 Rensen,M (2045)-Galje,H (2007) SA-2020-0-00719}) 17. Qb3 {[%emt 0:09:17]} dxc4 {[%emt 0:08:36]} 18. Nxc4 {[%emt 0:01:54] Black must now prevent Nd6+.} Nc6 {[%emt 0:00:21] [#]} (18... Nd5 $14) 19. Bxf8 $1 $16 {[%emt 0:01:57]} Kxf8 {[%emt 0:00:03]} 20. Rad1 {[%emt 0:00:41][%cal Ba1d1,Bd1d5,Bd5f5][%mdl 32]} Ke7 $2 {[%emt 0:03:19][%mdl 8192]} (20... Kg8 $16 {is more resistant.}) 21. Nd6 {[%emt 0:07:45]} (21. Qg3 Rhd8 $14) (21. Qa3 $142 {And now b5+ would win.} Qb5 22. Nd6 (22. Qd3 Rad8 $17) 22... Qxb4 23. Qf3) 21... Qf4 $2 {[%emt 0:15:01]} (21... Qh5 {keeps fighting.}) 22. Re4 $18 {[%emt 0:04:32]} (22. Nxb7 Qxb4 23. Qg3 Rhb8 $18) 22... Qg5 {[%emt 0:00:54]} 23. Nxf7 {[%emt 0:11:23][%mdl 64] Decoy} ({Less strong is} 23. Nxb7 Rhc8 24. Rc4 Na7 $18) 23... Kxf7 {[%emt 0:00:04]} (23... Qg6 $142) 24. Qxe6+ {[%emt 0:00:14]} (24. Rd7+ $142 Kf8 25. Qf3+ (25. Qxe6 Qf6 $15) 25... Qf5 26. Rf4 (26. Rxb7 $2 Qxf3 27. gxf3 h5 $17)) 24... Kf8 {[%emt 0:00:08]} 25. Rd5 {[%emt 0:04:02] White threatens Rf5+ and mate.} ({And not} 25. Rd7 Qf6 26. Qxf6+ gxf6 $15) 25... Qe7 {[%emt 0:03:22]} 26. Rf5+ {[%emt 0:00:24] Weighted Error Value: White=0.47/Black=0.90} 1-0

[Event "51st Rilton Cup 2023-24"]
[Site "Stockholm"]
[Date "2023.12.27"]
[Round "1.3"]
[White "Wartiovaara, Oliver"]
[Black "Gorshtein, Ido"]
[Result "1/2-1/2"]
[ECO "B12"]
[WhiteElo "2294"]
[BlackElo "2523"]
[Annotator "TA"]
[PlyCount "74"]
[EventDate "2023.12.27"]
[EventType "swiss"]
[EventCountry "SWE"]
[SourceTitle "playchess.com"]
[Source "ChessBase"]
[SourceQuality "1"]
[TimeControl "40/5400+30:1800+30"]

{[%evp 9,74,-20,-6,-33,25,-2,-4,-12,-11,-6,13,-11,-6,-11,-2,-6,-7,-52,-58,-69,-57,-73,-63,-63,-66,-67,-60,-73,-62,-41,-71,-64,0,0,0,0,16,0,0,0,0,0,0,0,0,0,0,0,0,0,1,1,1,1,1,0,8,0,0,0,0,0,16,8,12,0,41]} 1. e4 {[%emt 0:00:03]} c6 {[%emt 0:00:08]} 2. d4 {[%emt 0:00:04]} d5 {[%emt 0:00:07]} 3. f3 {[%emt 0:00:02]} e6 {[%emt 0:02:32]} 4. Nc3 {[%emt 0:00:11]} Bb4 {[%emt 0:00:13]} 5. a3 {[%emt 0:00:14]} Bxc3+ {[%emt 0:00:21]} 6. bxc3 {[%emt 0:00:04] B12: Caro-Kann: Advance Variation.} b6 {[%emt 0:00:39]} (6... dxe4 $15 7. Nh3 Nf6) 7. Nh3 {[%emt 0:06:34]} Ne7 {[%emt 0:04:01]} 8. Be3 {[%emt 0:03:39]} O-O {[%emt 0:08:03] [#]} 9. Qd2 $146 {[%emt 0:04:37]} ({Predecessor:} 9. Nf2 Ba6 10. Bxa6 Nxa6 11. Qe2 Qc8 12. O-O c5 13. Rfb1 cxd4 14. cxd4 Nb8 15. a4 {1-0 Steindl,J (2276)-Hafner,R (2082) St Veit op 38th 2019 (6)}) 9... Ba6 {[%emt 0:11:27]} 10. Bxa6 {[%emt 0:00:20]} Nxa6 {[%emt 0:00:02]} 11. O-O {[%emt 0:00:15]} c5 {[%emt 0:00:55]} 12. Nf4 {[%emt 0:05:02]} Rc8 {[%emt 0:02:49][%cal Ba8c8,Bc8c5,Bc5a5][%mdl 32]} 13. dxc5 {[%emt 0:18:16]} Nxc5 {[%emt 0:05:46]} 14. exd5 {[%emt 0:00:29]} e5 {[%emt 0:01:08]} (14... Nxd5 {simplifies} 15. Nxd5 Qxd5 16. Qxd5 exd5 17. Rfd1 Na4) 15. d6 {[%emt 0:11:55] [#]} Nf5 {[%emt 0:00:35] Threatens to win with ...Nxe3.} 16. Bxc5 {[%emt 0:00:53]} Rxc5 {[%emt 0:00:28]} 17. Nd3 {[%emt 0:00:24]} Ra5 {[%emt 0:02:54]} (17... Qxd6 18. Qg5 $11) 18. Nb4 {[%emt 0:08:17] Strongly threatening Nc6.} Qxd6 {[%emt 0:05:18]} ({But not} 18... Nxd6 19. Nc6 Qc7 20. Nxa5 bxa5 21. Qd5 $18) 19. Qxd6 {[%emt 0:00:08]} Nxd6 {[%emt 0:00:04]} 20. Rfd1 {[%emt 0:00:05]} Nc8 {[%emt 0:11:42]} ({Black should play} 20... Nf5 $1 $15) 21. Rd7 $11 {[%emt 0:01:24] The position is equal.} Rc5 {[%emt 0:02:48]} 22. Nd5 {[%emt 0:01:24]} b5 {[%emt 0:12:51]} 23. a4 {[%emt 0:06:02]} bxa4 {[%emt 0:00:22]} 24. Rxa4 {[%emt 0:00:05]} Rxd5 {[%emt 0:04:38][%mdl 64] [#] Remove Defender, Decoy} 25. Rxd5 {[%emt 0:00:05][%mdl 4096] Endgame KRR-KRN} Nb6 {[%emt 0:00:05][%csl LRa4,LRd5]} 26. Rda5 {[%emt 0:00:39] And now Rb4 would win.} Nxa4 {[%emt 0:00:03]} 27. Rxa4 {[%emt 0:00:04] KR-KR} Ra8 {[%emt 0:00:08]} 28. Ra6 {[%emt 0:00:04]} Kf8 {[%emt 0:00:33]} 29. c4 {[%emt 0:00:07][%cal Bc3c4,Bc4c5,Bc5c6][%mdl 32]} Ke7 {[%emt 0:00:49]} 30. c5 {[%emt 0:00:04]} Kd7 {[%emt 0:00:10]} 31. Kf2 {[%emt 0:00:18]} Kc7 {[%emt 0:00:24]} 32. c6 {[%emt 0:00:05]} Kd6 {[%emt 0:01:39]} 33. c3 {[%emt 0:01:10]} f5 {[%emt 0:03:14]} 34. h4 {[%emt 0:00:41]} g6 {[%emt 0:00:41]} 35. Ke3 {[%emt 0:00:50]} h6 {[%emt 0:07:30]} 36. Ke2 {[%emt 0:01:23]} Kc7 {[%emt 0:01:08]} 37. Ke3 {[%emt 0:00:09]} Kd6 {[%emt 0:00:10] Weighted Error Value: White=0.06 (flawless) /Black=0.08 (flawless)} 1/2-1/2

[Event "51st Rilton Cup 2023-24"]
[Site "Stockholm"]
[Date "2023.12.27"]
[Round "1.4"]
[White "Blomqvist, Erik"]
[Black "Utsab Chatterjee"]
[Result "1/2-1/2"]
[ECO "B30"]
[WhiteElo "2521"]
[BlackElo "2289"]
[Annotator "TA"]
[PlyCount "68"]
[EventDate "2023.12.27"]
[EventType "swiss"]
[EventCountry "SWE"]
[SourceTitle "playchess.com"]
[Source "ChessBase"]
[SourceQuality "1"]
[TimeControl "40/5400+30:1800+30"]

{[%evp 13,68,28,29,18,31,30,34,36,33,27,37,33,41,41,42,41,58,0,70,67,69,54,56,0,0,0,0,0,0,-17,-9,-64,-62,-62,-70,-84,-79,-106,-120,-104,-107,-109,-113,-106,-101,-133,0,0,0,0,0,0,0,0,0,0,0]} 1. e4 {[%emt 0:00:07]} c5 {[%emt 0:00:22]} 2. Nc3 {[%emt 0:00:13]} Nc6 {[%emt 0:00:12]} 3. Nf3 {[%emt 0:00:23][%cal Bg1f3,Bf3d2,Bd2f1,Bf1e3][%mdl 32]} e5 {[%emt 0:00:30]} 4. Bc4 {[%emt 0:00:40]} d6 {[%emt 0:00:19]} 5. d3 {[%emt 0:01:00]} Be7 {[%emt 0:00:54]} 6. Nd2 {[%emt 0:01:18]} Nf6 {[%emt 0:02:49]} 7. Nf1 {[%emt 0:00:24]} Bg4 {[%emt 0:00:51] 7...Nd7 is not played anymore.} 8. Qd2 {[%emt 0:00:28] [#] B30: Sicilian: 2...Nc6 3 Bb5, lines without ...g6.} Qd7 $146 {[%emt 0:02:08]} ({Predecessor:} 8... O-O 9. Ne3 Be6 10. O-O a6 11. a4 Nb4 12. b3 d5 13. exd5 Nfxd5 14. Ncxd5 Nxd5 15. Bb2 f6 16. Nxd5 Bxd5 17. Bxd5+ Qxd5 {1-0 Alekseenko,K (2702)-Gukesh,D (2614) Wch Blitz Warsaw 2021 (1)}) 9. Ne3 {[%emt 0:01:43]} Be6 {[%emt 0:00:07]} 10. Ncd5 {[%emt 0:02:09] White is slightly better.} Bd8 {[%emt 0:02:48]} 11. O-O {[%emt 0:00:56]} O-O {[%emt 0:00:08]} 12. a4 {[%emt 0:01:55]} Nh5 {[%emt 0:05:36]} 13. Qd1 {[%emt 0:06:59]} g6 {[%emt 0:03:32]} 14. c3 {[%emt 0:04:25]} (14. g3 {with more complications.} Bh3 15. Ng2 Kg7 16. Qd2) 14... Ng7 {[%emt 0:05:03]} 15. a5 {[%emt 0:11:06]} Rb8 {[%emt 0:03:46]} (15... f5 $1 $11) 16. b4 {[%emt 0:05:41]} cxb4 {[%emt 0:05:44]} 17. cxb4 {[%emt 0:00:17]} f5 {[%emt 0:00:33]} 18. Bd2 {[%emt 0:09:28]} (18. f4 $14) 18... f4 $11 {[%emt 0:04:40]} 19. Nc2 {[%emt 0:00:26][%cal Od3d4]} Ne7 {[%emt 0:00:48]} 20. Nxe7+ {[%emt 0:08:03]} Bxe7 {[%emt 0:00:09]} 21. Bxe6+ {[%emt 0:00:31]} Nxe6 {[%emt 0:03:02]} 22. f3 {[%emt 0:04:34]} ({Better is} 22. Ne1 $11) 22... Rbc8 {[%emt 0:03:39]} 23. Qb1 {[%emt 0:08:20]} d5 {[%emt 0:02:12]} 24. Qb3 {[%emt 0:04:59]} Rfd8 {[%emt 0:00:07]} 25. Rfd1 {[%emt 0:07:41]} Kf8 {[%emt 0:00:48]} 26. Be1 {[%emt 0:05:49]} dxe4 {[%emt 0:36:35]} 27. fxe4 {[%emt 0:00:05] [#]} Ng5 $1 {[%emt 0:00:34][%cal Be6g5,Bg5h3,Bh3f2][%mdl 32] Threatens to win with ...Qg4.} 28. Bf2 {[%emt 0:04:45]} Qg4 {[%emt 0:00:30]} 29. Bxa7 {[%emt 0:01:57] [#]} f3 {[%emt 0:12:10]} (29... Nh3+ $1 $17 30. Kh1 Qe2) 30. Ne3 {[%emt 0:01:12] The position is equal.} Nh3+ {[%emt 0:00:05]} 31. Kh1 {[%emt 0:00:11]} Nf2+ {[%emt 0:00:06]} 32. Kg1 {[%emt 0:00:04]} Nh3+ {[%emt 0:00:04]} 33. Kh1 {[%emt 0:00:05] Really sharp!} Nf2+ {[%emt 0:00:17]} 34. Kg1 {[%emt 0:00:07]} Nh3+ {[%emt 0:00:11] Weighted Error Value: White=0.13 (very precise) /Black=0.11 (very precise)} 1/2-1/2

[Event "51st Rilton Cup 2023-24"]
[Site "Stockholm"]
[Date "2023.12.27"]
[Round "1.5"]
[White "Le Goff, Ronan"]
[Black "Prraneeth Vuppala"]
[Result "0-1"]
[ECO "D02"]
[WhiteElo "2287"]
[BlackElo "2515"]
[Annotator "TA"]
[PlyCount "84"]
[EventDate "2023.12.27"]
[EventType "swiss"]
[EventCountry "SWE"]
[SourceTitle "playchess.com"]
[Source "ChessBase"]
[SourceQuality "1"]
[TimeControl "40/5400+30:1800+30"]

{[%evp 9,84,13,6,1,0,0,31,39,46,47,99,46,33,25,34,6,0,17,24,-5,10,0,-6,-8,0,-37,-33,-72,-58,-81,-45,-46,-46,-49,-17,-93,68,32,10,6,4,-21,-8,-6,-16,-17,12,-30,-39,-24,-16,-8,-12,-41,-52,-75,-80,-156,-148,-220,-216,-219,-210,-218,-190,-510,-127,-409,-405,-29985,-29986,-29986,-29987,-29987,-29988,-29988,-29989]} 1. d4 {[%emt 0:00:03]} d5 {[%emt 0:00:34]} 2. Nf3 {[%emt 0:00:10]} e6 {[%emt 0:00:17]} 3. g3 {[%emt 0:00:11]} b6 {[%emt 0:00:47]} 4. Bg2 {[%emt 0:00:35]} Bb7 {[%emt 0:00:06]} 5. O-O {[%emt 0:00:11]} Nd7 {[%emt 0:00:05]} 6. a4 {[%emt 0:06:49] [#] D02: 1 d4 d5 2 Nf3 sidelines, including 2...Nf6 3 g3 and 2...Nf6 3 Bf4.} c5 $146 {[%emt 0:02:36]} ({Predecessor:} 6... a5 7. Nc3 Bb4 8. Bg5 Ne7 9. Na2 Bd6 10. Nc1 O-O 11. Nd3 f6 12. Bf4 Ng6 13. Bxd6 cxd6 {1-0 Thorfinnsson,B (2439)-Grandelius,N (2663) Titled Tuesday intern op 02nd Mar blitz 2021 (2)}) 7. a5 {[%emt 0:01:14]} Bd6 {[%emt 0:01:42] [#] Repels Ne5} 8. c4 $1 {[%emt 0:05:41] White is slightly better.} Ngf6 {[%emt 0:06:25]} (8... Ne7 9. cxd5) 9. cxd5 {[%emt 0:03:48]} exd5 {[%emt 0:10:26]} ({Better is} 9... Bxd5 $14 10. Nc3 O-O) 10. Nc3 {[%emt 0:01:04]} ({White should play} 10. Nh4 $16) 10... O-O $14 {[%emt 0:00:19]} 11. Bg5 {[%emt 0:09:06]} h6 {[%emt 0:01:04]} 12. Bxf6 {[%emt 0:07:04]} Nxf6 {[%emt 0:01:25]} 13. e3 {[%emt 0:10:04]} Re8 {[%emt 0:02:28]} 14. Qc2 {[%emt 0:01:28]} Qd7 {[%emt 0:09:29]} 15. dxc5 {[%emt 0:10:32]} bxc5 {[%emt 0:00:26]} 16. Rfd1 {[%emt 0:00:13]} Rac8 {[%emt 0:08:04]} 17. a6 {[%emt 0:06:41]} Bc6 {[%emt 0:02:20]} 18. h3 {[%emt 0:01:49]} Qe6 {[%emt 0:12:06]} 19. Qd3 {[%emt 0:05:38]} Red8 {[%emt 0:01:26]} 20. b4 {[%emt 0:04:17]} d4 {[%emt 0:20:28]} 21. exd4 {[%emt 0:01:01]} (21. bxc5 $2 Bxf3 22. Bxf3 dxc3 23. cxd6 c2 $17) 21... c4 {[%emt 0:00:11]} (21... cxb4 22. d5 Qe8 23. dxc6 $11) 22. Qc2 {[%emt 0:09:05]} (22. Qe2 $11) 22... Nd5 $2 {[%emt 0:05:15] Black is more active.} (22... Bxb4 $17 23. Re1 Qd6) 23. Nxd5 {[%emt 0:00:49]} (23. b5 $5 {[%cal Rb5c6]} Nb4 24. Qd2 $14) 23... Bxd5 {[%emt 0:00:33] This pair of bishops is nice.} 24. Re1 {[%emt 0:03:40]} Qf6 {[%emt 0:00:35]} (24... Qd7 {looks sharper.} 25. Ng5 hxg5 26. Bxd5 Bxb4 27. Re5 Be7) 25. Ne5 {[%emt 0:01:13]} (25. Qc3 $5 {[%cal Rf3e5]}) 25... Bxg2 {[%emt 0:01:38]} (25... Bxb4 {keeps more tension.} 26. Red1 Bxg2 27. Kxg2 c3) 26. Kxg2 {[%emt 0:00:17]} Bxb4 {[%emt 0:01:16]} 27. Re4 {[%emt 0:00:16]} Qe6 {[%emt 0:03:57]} (27... Bd6 $5 {[%cal Rd6e5]}) 28. Nf3 {[%emt 0:02:41]} Qc6 {[%emt 0:00:33]} 29. Ra4 {[%emt 0:01:45]} Qb5 {[%emt 0:01:17]} (29... f5 30. Rf4 Be7 31. d5 Qxd5 32. Raxc4 Rxc4 33. Rxc4 $14) 30. Re5 {[%emt 0:00:23]} Qb6 {[%emt 0:00:04]} 31. Ra1 {[%emt 0:02:54]} c3 {[%emt 0:01:00]} 32. Rb1 {[%emt 0:01:07]} Rc4 {[%emt 0:01:49]} 33. d5 {[%emt 0:01:42]} (33. Re4 $142) 33... Qxa6 $17 {[%emt 0:00:42]} 34. Qe2 {[%emt 0:01:50] [#]} (34. Ne1 $17 {keeps fighting.}) 34... Qc8 $1 $19 {[%emt 0:01:09] Hoping for ...c2.} ({Worse is} 34... c2 35. Rc1 Qc8 36. Re4 Rxe4 37. Qxe4 $17) 35. Re4 {[%emt 0:01:20] [#]} Rxe4 {[%emt 0:01:56]} 36. Qxe4 {[%emt 0:00:09]} a5 {[%emt 0:00:16]} ({Not} 36... c2 37. Rc1 a5 38. Rxc2 $17) 37. Ne5 $2 {[%emt 0:00:22]} (37. Rd1 {is a better chance.}) 37... Qc5 $2 {[%emt 0:01:43]} (37... Re8 $19 {and Black stays clearly on top.} 38. Qf4 Rxe5 39. Qxe5 c2) 38. Rd1 $2 {[%emt 0:00:59][%mdl 8192] Loses the game.} (38. Nc6 $17 Rf8 39. Re1 (39. Nxb4 $2 axb4 40. Rxb4 c2 $19)) 38... c2 {[%emt 0:00:45]} 39. Nxf7 {[%emt 0:00:35]} (39. Rc1 $19 Qxd5 40. Qxd5 Rxd5 41. Nc4) 39... cxd1=Q {[%emt 0:01:41] Black mates.} 40. Nxh6+ {[%emt 0:00:09]} gxh6 {[%emt 0:00:13]} 41. Qe6+ {[%emt 0:30:41]} Kf8 {[%emt 0:30:20]} 42. Qxh6+ {[%emt 0:01:02]} Ke8 {[%emt 0:00:00] Weighted Error Value: White=0.50/Black=0.26 (precise)} 0-1